fUSD/lending_fUSD_20240105
["ID","MTS","AMOUNT","RATE_DAILY","PERIOD"]
[310294456,1704463927052,-558.28,0.0003178,2]
[310294457,1704463927062,-500.0,0.0003178,2]
[310294458,1704463927072,-500.0,0.0003178,2]
[310294459,1704463927082,-1946.6,0.0003178,2]
[310294460,1704463927091,-500.0,0.0003178,2]
[310294461,1704463927101,-1013.42,0.0003178,2]
[310294462,1704463927110,-500.0,0.0003178,2]
[310294463,1704463927120,-500.0,0.0003178,2]
[310294464,1704463927130,-228.92992297,0.0003178,2]
[310294465,1704463927139,-500.0,0.0003178,2]
[310294466,1704463927149,-1212.22,0.0003178,2]
[310294467,1704463927158,-500.0,0.0003178,2]
[310294468,1704463927168,-2361.2,0.0003178,2]
[310294469,1704463927178,-500.0,0.0003178,2]
[310294470,1704463927188,-702.4,0.0003178,2]
[310294471,1704463927198,-1128.19,0.0003178,2]
[310294472,1704463927208,-520.27916633,0.0003178,2]
[310294473,1704463927218,-764.39,0.0003178,2]
[310294474,1704463927227,-500.0,0.0003178,2]
[310294475,1704463927316,-517.07,0.0003178,2]
[310294476,1704463927326,-254.70433036,0.0003178,2]
[310294477,1704463927336,-1542.41,0.0003178,2]
[310294478,1704463927346,-1440.35,0.0003178,2]
[310294479,1704463927356,-500.0,0.0003178,2]
[310294480,1704463927366,-500.0,0.0003178,2]
[310294481,1704463927376,-715.0,0.0003178,2]
[310294482,1704463927385,-500.0,0.0003178,2]
[310294483,1704463927395,-500.0,0.0003178,2]
[310294484,1704463927405,-2358.36,0.0003178,2]
[310294485,1704463927414,-1017.07,0.0003178,2]
[310294486,1704463927424,-500.0,0.0003178,2]
[310294487,1704463927434,-5040.24,0.0003178,2]
[310294488,1704463927444,-500.0,0.0003178,2]
[310294489,1704463927453,-500.0,0.0003178,2]
[310294490,1704463927465,-1054.48,0.0003178,2]
[310294491,1704463927475,-500.0,0.0003178,2]
[310294492,1704463927485,-500.0,0.0003178,2]
[310294493,1704463927495,-500.0,0.0003178,2]
[310294494,1704463927505,-915.19,0.0003178,2]
[310294495,1704463927515,-8316.18,0.0003178,2]
[310294496,1704463927525,-1182.97,0.0003178,2]
[310294497,1704463927535,-5436.81,0.0003178,2]
[310294498,1704463927545,-500.0,0.0003178,2]
[310294499,1704463927556,-500.0,0.0003178,2]
[310294500,1704463927566,-500.0,0.0003178,2]
[310294501,1704463927575,-826.79,0.0003178,2]
[310294502,1704463927586,-709.6,0.0003178,2]
[310294503,1704463927598,-500.0,0.0003178,2]
[310294504,1704463927607,-500.0,0.0003178,2]
[310294505,1704463927618,-526.58,0.0003178,2]
[310294506,1704463927628,-574.8,0.0003178,2]
[310294507,1704463927638,-2833.48,0.0003178,2]
[310294508,1704463927648,-856.02,0.0003178,2]
[310294509,1704463927657,-365.60499966,0.00031797,2]
[310294510,1704463927667,-2616.19735922,0.000318,2]
[310294511,1704463927677,-115821.32640267,0.000318,2]
[310294512,1704463927686,-103453.88406322,0.000318,2]
[310294513,1704463927696,-352831.1079117,0.000318,2]
[310294514,1704463927705,-524858.57757513,0.000318,2]
[310294515,1704463927715,-184.0,0.000318,20]
[310294516,1704463927726,-1000.0,0.000318,7]
[310294517,1704463927736,-231000.839806,0.000318,2]
[310294518,1704463927746,-418.72,0.00031875,2]
[310294519,1704463927756,-150.12019165,0.000319,2]
[310294520,1704463927766,-150.12019155,0.000319,2]
[310294521,1704463927775,-153.84,0.00031963,2]
[310294522,1704463927785,-481.82905292,0.00031973,2]
[310294523,1704463927795,-173.17,0.00031973,2]
[310294524,1704463927805,-500.0,0.00031973,15]
[310294525,1704463927815,-180.43607819,0.00031973,2]
[310294526,1704463927825,-602.26270957,0.00031973,2]
[310294527,1704463927834,-500.0,0.00031973,2]
[310294528,1704463927846,-500.0,0.00031973,2]
[310294529,1704463927857,-1444.79,0.00031973,2]
[310294530,1704463927869,-947.41,0.00031973,2]
[310294531,1704463927879,-238.87630899,0.00031973,2]
[310294532,1704463927890,-500.0,0.00031973,2]
[310294533,1704463927901,-566.45876307,0.00031973,2]
[310294534,1704463927911,-2917.19,0.00031973,2]
[310294535,1704463927921,-500.0,0.00031973,2]
[310294536,1704463927931,-1039.42,0.00031973,2]
[310294537,1704463927942,-500.0,0.00031973,2]
[310294538,1704463927952,-588.09,0.00031973,2]
[310294539,1704463927961,-500.0,0.00031973,2]
[310294540,1704463927973,-984.84,0.00031973,2]
[310294541,1704463927982,-1577.2,0.00031973,2]
[310294542,1704463927991,-611.95604915,0.00031973,2]
[310294543,1704463928001,-1004.25,0.00031973,2]
[310294544,1704463928010,-500.0,0.00031973,2]
[310294545,1704463928020,-500.0,0.00031973,2]
[310294546,1704463928029,-941.19,0.00031973,2]
[310294547,1704463928038,-500.0,0.00031973,2]
[310294548,1704463928051,-500.0,0.00031973,2]
[310294549,1704463928062,-587.5,0.00031973,2]
[310294550,1704463928072,-500.0,0.00031973,2]
[310294551,1704463928082,-684.69,0.00031973,2]
[310294552,1704463928090,-500.0,0.00031973,2]
[310294553,1704463928101,-500.0,0.00031973,2]
[310294554,1704463928112,-502.66,0.00031973,2]
[310294555,1704463928121,-1249.93,0.00031973,2]
[310294556,1704463928132,-700.39,0.00031973,2]
[310294557,1704463928143,-960.04,0.00031973,2]
[310294558,1704463928153,-648.88331856,0.00031973,2]
[310294559,1704463928163,-500.0,0.00031973,2]
[310294560,1704463928172,-537.41,0.00031973,2]
[310294561,1704463928182,-667.92,0.00031973,2]
[310294562,1704463928192,-510.05,0.00031973,2]
[310294563,1704463928202,-978.16,0.00031973,2]
[310294564,1704463928213,-500.0,0.00031973,2]
[310294565,1704463928223,-945.97,0.00031973,2]
[310294566,1704463928233,-1019.98,0.00031973,2]
[310294567,1704463928242,-500.0,0.00031973,2]
[310294568,1704463928251,-803.57,0.00031973,2]
[310294569,1704463928261,-889.76,0.00031973,2]
[310294570,1704463928270,-610.92,0.00031973,2]
[310294571,1704463928280,-605.09,0.00031973,2]
[310294572,1704463928289,-500.0,0.00031973,2]
[310294573,1704463928299,-571.57,0.00031973,2]
[310294574,1704463928308,-500.0,0.00031973,2]
[310294575,1704463928319,-500.0,0.00031973,2]
[310294576,1704463928329,-500.0,0.00031973,2]
[310294577,1704463928338,-500.0,0.00031973,2]
[310294578,1704463928348,-500.0,0.00031973,2]
[310294579,1704463928358,-100000.0,0.00032,2]
[310294580,1704463928368,-1000.0,0.00032,2]
[310294581,1704463928377,-179.26441963,0.00032,4]
[310294582,1704463928387,-301.2481577,0.00032,4]
[310294583,1704463928396,-3818.31396149,0.00032,4]
[310294584,1704463928405,-165.087017,0.00032,3]
[310294585,1704463928414,-3000.0,0.00032,2]
[310294586,1704463928424,-3289.566386,0.00032,2]
[310294587,1704463928433,-304.96762489,0.00032,2]
[310294588,1704463928442,-304.96762489,0.00032,2]
[310294589,1704463928452,-300.0,0.00032,5]
[310294590,1704463928462,-155.42146552,0.00032,2]
[310294591,1704463928472,-3000.0,0.0003201,2]
[310294592,1704463928480,-3000.0,0.0003202,2]
[310294593,1704463928490,-3000.0,0.0003203,2]
[310294594,1704463928499,-3000.0,0.0003204,2]
[310294595,1704463928509,-3000.0,0.0003205,2]
[310294596,1704463928518,-222.06192638,0.00032054,2]
[310294597,1704463928528,-500.0,0.00032054,2]
[310294598,1704463928537,-500.0,0.00032054,2]
[310294599,1704463928547,-500.0,0.00032054,2]
[310294600,1704463928556,-578.99,0.00032054,2]
[310294601,1704463928566,-570.77,0.00032054,2]
[310294602,1704463928575,-500.0,0.00032054,2]
[310294603,1704463928585,-500.0,0.00032054,2]
[310294604,1704463928858,-500.0,0.00032054,2]
[310294605,1704463928870,-500.0,0.00032054,2]
[310294606,1704463928880,-500.0,0.00032054,2]
[310294607,1704463928889,-500.0,0.00032054,2]
[310294608,1704463928899,-500.0,0.00032054,2]
[310294609,1704463928910,-595.99366889,0.00032054,2]
[310294610,1704463928919,-500.0,0.00032054,2]
[310294611,1704463928929,-964.18,0.00032054,2]
[310294612,1704463928938,-500.0,0.00032054,2]
[310294613,1704463928948,-553.60949306,0.00032054,2]
[310294614,1704463928958,-500.0,0.00032054,2]
[310294615,1704463928967,-500.0,0.00032054,2]
[310294616,1704463928976,-252.37903255,0.00032054,2]
[310294617,1704463928986,-500.0,0.00032054,2]
[310294618,1704463928995,-500.0,0.00032054,2]
[310294619,1704463929004,-500.0,0.00032054,2]
[310294620,1704463929015,-500.0,0.00032054,2]
[310294621,1704463929049,-500.0,0.00032054,2]
[310294622,1704463929059,-500.0,0.00032054,2]
[310294623,1704463929069,-421.19464491,0.00032054,2]
[310294624,1704463929078,-500.0,0.00032054,2]
[310294625,1704463929087,-500.0,0.00032054,2]
[310294626,1704463929097,-500.0,0.00032054,2]
[310294627,1704463929106,-500.0,0.00032054,2]
[310294628,1704463929116,-500.0,0.00032054,2]
[310294629,1704463929125,-500.0,0.00032054,2]
[310294630,1704463929135,-500.0,0.00032054,2]
[310294631,1704463929144,-500.0,0.00032054,2]
[310294632,1704463929153,-500.0,0.00032054,2]
[310294633,1704463929163,-637.97992967,0.00032054,2]
[310294634,1704463929173,-776.92,0.00032054,2]
[310294635,1704463929183,-500.0,0.00032054,2]
[310294636,1704463929193,-500.0,0.00032054,2]
[310294637,1704463929204,-500.0,0.00032054,2]
[310294638,1704463929213,-500.0,0.00032054,2]
[310294639,1704463929223,-500.0,0.00032054,2]
[310294640,1704463929234,-500.0,0.00032054,2]
[310294641,1704463929245,-500.0,0.00032054,2]
[310294642,1704463929255,-500.0,0.00032054,2]
[310294643,1704463929264,-754.78,0.00032054,2]
[310294644,1704463929274,-608.57,0.00032054,2]
[310294645,1704463929284,-500.0,0.00032054,2]
[310294646,1704463929294,-500.0,0.00032054,2]
[310294647,1704463929304,-500.0,0.00032054,2]
[310294648,1704463929313,-500.0,0.00032054,2]
[310294649,1704463929323,-500.0,0.00032054,2]
[310294650,1704463929332,-500.0,0.00032054,2]
[310294651,1704463929341,-574.49,0.00032054,2]
[310294652,1704463929351,-500.0,0.00032054,2]
[310294653,1704463929361,-500.0,0.00032054,2]
[310294654,1704463929373,-500.0,0.00032054,2]
[310294655,1704463929383,-500.0,0.00032054,2]
[310294656,1704463929392,-500.0,0.00032054,2]
[310294657,1704463929403,-597.18,0.00032054,2]
[310294658,1704463929413,-500.0,0.00032054,2]
[310294659,1704463929422,-500.0,0.00032054,2]
[310294660,1704463929432,-535.87,0.00032054,2]
[310294661,1704463929442,-500.0,0.00032054,2]
[310294662,1704463929451,-500.0,0.00032054,2]
[310294663,1704463929461,-500.0,0.00032054,2]
[310294664,1704463929470,-563.18946139,0.00032054,2]
[310294665,1704463929480,-500.0,0.00032054,2]
[310294666,1704463929490,-500.0,0.00032054,2]
[310294667,1704463929500,-500.0,0.00032054,2]
[310294668,1704463929510,-500.0,0.00032054,2]
[310294669,1704463929519,-500.0,0.00032054,2]
[310294670,1704463929529,-500.0,0.00032054,2]
[310294671,1704463929540,-847.71,0.00032054,2]
[310294672,1704463929549,-500.0,0.00032054,2]
[310294673,1704463929559,-389.28535053,0.00032054,2]
[310294674,1704463929570,-500.0,0.00032054,2]
[310294675,1704463929583,-500.0,0.00032054,2]
[310294676,1704463929592,-500.0,0.00032054,2]
[310294677,1704463929601,-452.71975811,0.00032054,2]
[310294678,1704463929611,-500.0,0.00032054,2]
[310294679,1704463929620,-500.0,0.00032054,2]
[310294680,1704463929629,-500.0,0.00032054,2]
[310294681,1704463929638,-939.06,0.00032054,2]
[310294682,1704463929648,-500.0,0.00032054,2]
[310294683,1704463929658,-500.0,0.00032054,2]
[310294684,1704463929668,-500.0,0.00032054,2]
[310294685,1704463929678,-500.0,0.00032054,2]
[310294686,1704463929687,-500.0,0.00032054,2]
[310294687,1704463929697,-500.0,0.00032054,2]
[310294688,1704463929707,-483.43323869,0.00032054,2]
[310294689,1704463929716,-617.42,0.00032054,2]
[310294690,1704463929726,-500.0,0.00032054,2]
[310294691,1704463929736,-500.0,0.00032054,2]
[310294692,1704463929745,-500.0,0.00032054,2]
[310294693,1704463929754,-763.35,0.00032054,2]
[310294694,1704463929764,-500.0,0.00032054,2]
[310294695,1704463929773,-581.06,0.00032054,2]
[310294696,1704463929784,-533.25,0.00032054,2]
[310294697,1704463929793,-1032.57,0.00032054,2]
[310294698,1704463929802,-500.0,0.00032054,2]
[310294699,1704463929812,-500.0,0.00032054,2]
[310294700,1704463929822,-668.81,0.00032054,2]
[310294701,1704463929832,-571.50255311,0.00032054,2]
[310294702,1704463929842,-897.42,0.00032054,2]
[310294703,1704463929852,-500.0,0.00032054,2]
[310294704,1704463929862,-500.0,0.00032054,2]
[310294705,1704463929872,-610.9,0.00032054,2]
[310294706,1704463929882,-542.23,0.00032054,2]
[310294707,1704463929892,-500.0,0.00032054,2]
[310294708,1704463929901,-500.0,0.00032054,2]
[310294709,1704463929911,-500.0,0.00032054,2]
[310294710,1704463929922,-977.28,0.00032054,2]
[310294711,1704463929932,-500.0,0.00032054,2]
[310294712,1704463929942,-500.0,0.00032054,2]
[310294713,1704463929953,-564.72,0.00032054,2]
[310294714,1704463929963,-500.0,0.00032054,2]
[310294715,1704463929974,-521.02146919,0.00032054,2]
[310294716,1704463929984,-623.13,0.00032054,2]
[310294717,1704463929995,-500.0,0.00032054,2]
[310294718,1704463930005,-660.13,0.00032054,2]
[310294719,1704463930016,-500.0,0.00032054,2]
[310294720,1704463930027,-1107.9,0.00032054,2]
[310294721,1704463930037,-449.98451113,0.00032054,2]
[310294722,1704463930048,-500.0,0.00032054,2]
[310294723,1704463930058,-500.0,0.00032054,2]
[310294724,1704463930071,-500.0,0.00032054,2]
[310294725,1704463930083,-500.0,0.00032054,2]
[310294726,1704463930092,-534.02,0.00032054,2]
[310294727,1704463930103,-500.0,0.00032054,2]
[310294728,1704463930112,-1001.59,0.00032054,2]
[310294729,1704463930122,-500.0,0.00032054,2]
[310294730,1704463930132,-500.0,0.00032054,2]
[310294731,1704463930142,-500.0,0.00032054,2]
[310294732,1704463930152,-500.0,0.00032054,2]
[310294733,1704463930162,-500.0,0.00032054,2]
[310294734,1704463930173,-577.73,0.00032054,2]
[310294735,1704463930184,-500.0,0.00032054,2]
[310294736,1704463930194,-515.35,0.00032054,2]
[310294737,1704463930205,-540.82848411,0.00032054,2]
[310294738,1704463930215,-500.0,0.00032054,2]
[310294739,1704463930225,-500.0,0.00032054,2]
[310294740,1704463930236,-528.01,0.00032054,2]
[310294741,1704463930246,-500.0,0.00032054,2]
[310294742,1704463930257,-500.0,0.00032054,2]
[310294743,1704463930269,-500.0,0.00032054,2]
[310294744,1704463930278,-609.91,0.00032054,2]
[310294745,1704463930290,-3164.14,0.00032054,2]
[310294746,1704463930300,-500.0,0.00032054,2]
[310294747,1704463930310,-767.51,0.00032054,2]
[310294748,1704463930321,-500.0,0.00032054,2]
[310294749,1704463930333,-500.0,0.00032054,2]
[310294750,1704463930344,-300.6612078,0.00032054,2]
[310294751,1704463930354,-390.0878408,0.00032054,2]
[310294752,1704463930365,-500.0,0.00032054,2]
[310294753,1704463930375,-593.59275264,0.00032054,2]
[310294754,1704463930386,-403.85677619,0.00032054,2]
[310294755,1704463930396,-492.86566337,0.00032054,2]
[310294756,1704463930407,-572.23,0.00032054,2]
[310294757,1704463930417,-500.0,0.00032054,2]
[310294758,1704463930427,-1043.05,0.00032054,2]
[310294759,1704463930437,-663.96,0.00032054,2]
[310294760,1704463930446,-500.0,0.00032054,2]
[310294761,1704463930457,-969.42,0.00032054,2]
[310294762,1704463930467,-500.0,0.00032054,2]
[310294763,1704463930477,-223.48647917,0.00032054,2]
[310294764,1704463930487,-500.0,0.00032054,2]
[310294765,1704463930497,-951.95,0.00032054,2]
[310294766,1704463930507,-500.0,0.00032054,2]
[310294767,1704463930517,-500.0,0.00032054,2]
[310294768,1704463930528,-500.0,0.00032054,2]
[310294769,1704463930538,-500.0,0.00032054,2]
[310294770,1704463930548,-500.0,0.00032054,2]
[310294771,1704463930558,-585.0,0.00032054,2]
[310294772,1704463930570,-795.33,0.00032054,2]
[310294773,1704463930580,-500.0,0.00032054,2]
[310294774,1704463930590,-640.84681746,0.00032054,2]
[310294775,1704463930600,-500.0,0.00032054,2]
[310294776,1704463930609,-500.0,0.00032054,2]
[310294777,1704463930621,-169.84718081,0.00032054,2]
[310294778,1704463930631,-531.42040814,0.00032054,2]
[310294779,1704463930646,-500.0,0.00032054,2]
[310294780,1704463930656,-535.25,0.00032054,2]
[310294781,1704463930667,-573.11,0.00032054,2]
[310294782,1704463930678,-536.51039373,0.00032054,2]
[310294783,1704463930688,-1278.92,0.00032054,2]
[310294784,1704463930698,-522.9,0.00032054,2]
[310294785,1704463930709,-527.12375017,0.00032054,2]
[310294786,1704463930720,-500.0,0.00032054,2]
[310294787,1704463930730,-1115.46,0.00032054,2]
[310294788,1704463930740,-503.15,0.00032054,2]
[310294789,1704463930749,-163.99609742,0.00032054,2]
[310294790,1704463930762,-500.0,0.00032054,2]
[310294791,1704463930772,-500.0,0.00032054,2]
[310294792,1704463930783,-500.0,0.00032054,2]
[310294793,1704463930793,-898.64,0.00032054,2]
[310294794,1704463930804,-500.0,0.00032054,2]
[310294795,1704463930816,-500.0,0.00032054,2]
[310294796,1704463930828,-2197.46,0.00032054,2]
[310294797,1704463930839,-517.1270377,0.00032054,2]
[310294798,1704463930849,-1050.63,0.00032054,2]
[310294799,1704463930858,-242.11216993,0.00032054,2]
[310294800,1704463930868,-500.0,0.00032054,2]
[310294801,1704463930879,-512.25,0.00032054,2]
[310294802,1704463930889,-500.0,0.00032054,2]
[310294803,1704463930899,-500.0,0.00032054,2]
[310294804,1704463930910,-500.0,0.00032054,2]
[310294805,1704463930921,-652.42,0.00032054,2]
[310294806,1704463930932,-500.0,0.00032054,2]
[310294807,1704463930942,-500.0,0.00032054,2]
[310294808,1704463930952,-500.96,0.00032054,2]
[310294809,1704463930962,-500.0,0.00032054,2]
[310294810,1704463930972,-737.52,0.00032054,2]
[310294811,1704463930982,-500.0,0.00032054,2]
[310294812,1704463930992,-170.19515354,0.00032054,2]
[310294813,1704463931002,-500.0,0.00032054,2]
[310294814,1704463931013,-500.0,0.00032054,2]
[310294815,1704463931025,-500.0,0.00032054,2]
[310294816,1704463931035,-500.0,0.00032054,2]
[310294817,1704463931046,-1408.67,0.00032054,2]
[310294818,1704463931056,-500.0,0.00032054,2]
[310294819,1704463931067,-500.0,0.00032054,2]
[310294820,1704463931077,-519.09,0.00032054,2]
[310294821,1704463931086,-500.0,0.00032054,2]
[310294822,1704463931096,-500.0,0.00032054,2]
[310294823,1704463931106,-500.0,0.00032054,2]
[310294824,1704463931115,-500.0,0.00032054,2]
[310294825,1704463931125,-500.0,0.00032054,2]
[310294826,1704463931134,-500.0,0.00032054,2]
[310294827,1704463931144,-1017.17,0.00032054,2]
[310294828,1704463931155,-500.0,0.00032054,2]
[310294829,1704463931166,-500.0,0.00032054,2]
[310294830,1704463931177,-190.29286507,0.00032054,2]
[310294831,1704463931186,-500.0,0.00032054,2]
[310294832,1704463931196,-1228.15,0.00032054,2]
[310294833,1704463931207,-1193.22,0.00032054,2]
[310294834,1704463931216,-500.0,0.00032054,2]
[310294835,1704463931226,-500.0,0.00032054,2]
[310294836,1704463931236,-500.0,0.00032054,2]
[310294837,1704463931245,-1709.82,0.00032054,2]
[310294838,1704463931255,-500.0,0.00032054,2]
[310294839,1704463931266,-500.0,0.00032054,2]
[310294840,1704463931275,-500.0,0.00032054,2]
[310294841,1704463931285,-500.0,0.00032054,2]
[310294842,1704463931294,-521.26,0.00032054,2]
[310294843,1704463931304,-500.0,0.00032054,2]
[310294844,1704463931313,-1009.32,0.00032054,2]
[310294845,1704463931323,-769.11,0.00032054,2]
[310294846,1704463931334,-500.0,0.00032054,2]
[310294847,1704463931342,-952.84,0.00032054,2]
[310294848,1704463931355,-294.35169151,0.00032054,2]
[310294849,1704463931365,-519.92085207,0.00032054,2]
[310294850,1704463931374,-500.0,0.00032054,2]
[310294851,1704463931384,-634.11,0.00032054,2]
[310294852,1704463931393,-623.86617915,0.00032054,2]
[310294853,1704463931403,-1188.9,0.00032054,2]
[310294854,1704463931412,-558.13,0.00032054,2]
[310294855,1704463931422,-500.0,0.00032054,2]
[310294856,1704463931432,-773.34,0.00032054,2]
[310294857,1704463931442,-500.0,0.00032054,2]
[310294858,1704463931451,-500.0,0.00032054,2]
[310294859,1704463931462,-500.0,0.00032054,2]
[310294860,1704463931472,-500.0,0.00032054,2]
[310294861,1704463931481,-881.16,0.00032054,2]
[310294862,1704463931491,-500.0,0.00032054,2]
[310294863,1704463931500,-500.0,0.00032054,2]
[310294864,1704463931509,-500.0,0.00032054,2]
[310294865,1704463931519,-1431.77,0.00032054,2]
[310294866,1704463931529,-500.0,0.00032054,2]
[310294867,1704463931539,-798.14,0.00032054,2]
[310294868,1704463931548,-500.0,0.00032054,2]
[310294869,1704463931558,-2061.68,0.00032054,2]
[310294870,1704463931569,-500.0,0.00032054,2]
[310294871,1704463931579,-648.29038677,0.00032054,2]
[310294872,1704463931589,-909.7,0.00032054,2]
[310294873,1704463931598,-500.0,0.00032054,2]
[310294874,1704463931608,-500.0,0.00032054,2]
[310294875,1704463931617,-1481.56,0.00032054,2]
[310294876,1704463931626,-500.0,0.00032054,2]
[310294877,1704463931636,-500.0,0.00032054,2]
[310294878,1704463931645,-1575.41,0.00032054,2]
[310294879,1704463931655,-500.0,0.00032054,2]
[310294880,1704463931665,-982.39,0.00032054,2]
[310294881,1704463931675,-500.39,0.00032054,2]
[310294882,1704463931685,-500.0,0.00032054,2]
[310294883,1704463931695,-500.0,0.00032054,2]
[310294884,1704463931705,-500.0,0.00032054,2]
[310294885,1704463931715,-500.0,0.00032054,2]
[310294886,1704463931724,-616.4,0.00032054,2]
[310294887,1704463931733,-500.0,0.00032054,2]
[310294888,1704463931744,-656.28,0.00032054,2]
[310294889,1704463931758,-615.45,0.00032054,2]
[310294890,1704463931773,-815.67,0.00032054,2]
[310294891,1704463931785,-855.97,0.00032054,2]
[310294892,1704463931798,-500.0,0.00032054,2]
[310294893,1704463931816,-500.0,0.00032054,2]
[310294894,1704463931830,-914.92,0.00032054,2]
[310294895,1704463931846,-759.49,0.00032054,2]
[310294896,1704463931861,-612.52,0.00032054,2]
[310294897,1704463931874,-500.0,0.00032054,2]
[310294898,1704463931889,-638.72,0.00032054,2]
[310294899,1704463931904,-500.0,0.00032054,2]
[310294900,1704463931918,-500.0,0.00032054,2]
[310294901,1704463931933,-500.0,0.00032054,2]
[310294902,1704463931947,-500.0,0.00032054,2]
[310294903,1704463931959,-779.76,0.00032054,2]
[310294904,1704463931976,-500.0,0.00032054,2]
[310294905,1704463931990,-1184.83,0.00032054,2]
[310294906,1704463932003,-1087.44,0.00032054,2]
[310294907,1704463932016,-547.36,0.00032054,2]
[310294908,1704463932030,-500.0,0.00032054,2]
[310294909,1704463932044,-500.0,0.00032054,2]
[310294910,1704463932059,-908.56,0.00032054,2]
[310294911,1704463932075,-500.0,0.00032054,2]
[310294912,1704463932088,-500.0,0.00032054,2]
[310294913,1704463932100,-500.0,0.00032054,2]
[310294914,1704463932112,-5038.11,0.00032054,2]
[310294915,1704463932127,-500.0,0.00032054,2]
[310294916,1704463932139,-884.22,0.00032054,2]
[310294917,1704463932154,-880.69,0.00032054,2]
[310294918,1704463932165,-500.0,0.00032054,2]
[310294919,1704463932176,-828.3,0.00032054,2]
[310294920,1704463932191,-500.0,0.00032054,2]
[310294921,1704463932203,-500.0,0.00032054,2]
[310294922,1704463932215,-1954.72,0.00032054,2]
[310294923,1704463932227,-500.0,0.00032054,2]
[310294924,1704463932239,-1200.04,0.00032054,2]
[310294925,1704463932252,-500.0,0.00032054,2]
[310294926,1704463932265,-500.0,0.00032054,2]
[310294927,1704463932279,-964.87,0.00032054,2]
[310294928,1704463932291,-500.0,0.00032054,2]
[310294929,1704463932304,-1145.56,0.00032054,2]
[310294930,1704463932318,-599.23593259,0.00032054,2]
[310294931,1704463932329,-794.58,0.00032054,2]
[310294932,1704463932342,-855.41,0.00032054,2]
[310294933,1704463932354,-534.82,0.00032054,2]
[310294934,1704463932367,-500.0,0.00032054,2]
[310294935,1704463932379,-773.85,0.00032054,2]
[310294936,1704463932391,-500.0,0.00032054,2]
[310294937,1704463932404,-500.0,0.00032054,2]
[310294938,1704463932417,-1238.16,0.00032054,2]
[310294939,1704463932430,-500.0,0.00032054,2]
[310294940,1704463932442,-3690.73,0.00032054,2]
[310294941,1704463932456,-500.0,0.00032054,2]
[310294942,1704463932470,-500.0,0.00032054,2]
[310294943,1704463932483,-500.0,0.00032054,2]
[310294944,1704463932497,-500.0,0.00032054,2]
[310294945,1704463932511,-692.03,0.00032054,2]
[310294946,1704463932524,-500.0,0.00032054,2]
[310294947,1704463932538,-559.53,0.00032054,2]
[310294948,1704463932550,-524.75704674,0.00032054,2]
[310294949,1704463932564,-500.0,0.00032054,2]
[310294950,1704463932579,-500.0,0.00032054,2]
[310294951,1704463932592,-500.0,0.00032054,2]
[310294952,1704463932605,-500.0,0.00032054,2]
[310294953,1704463932619,-500.0,0.00032054,2]
[310294954,1704463932633,-500.0,0.00032054,2]
[310294955,1704463932647,-654.46,0.00032054,2]